Cogmind - Beta 11.1 @@@ ROGUE MODE // 2022.05.14 @ 14:36:16 Player: Sara Result: Destroyed by Y-45 Defender with Heavy Assault Rifle Performance ------------- Evolutions (1) 500 Regions Visited (2) 400 Robots Destroyed (8) 40 Value Destroyed (108) 108 Prototype IDs (0) 0 Alien Tech Used (0) 0 Bonus (200) 200 TOTAL SCORE: 1248 Bonus ------- Pacifist 200 Cogmind --------- Core Integrity 0/400 Matter 300/300 Energy 99/100 System Corruption 0% Temperature Cool (0) Movement Core (50) Location -9/Materials Parts ------- > --- POWER (1) -------- (None) > --- PROPULSION (2) --- (None) > --- UTILITY (4) ------ Terrain Scanner Terrain Scan Processor Targeting Computer > --- WEAPON (2) ------- Hammer > --- INVENTORY (5) ---- Hammer Peak State ------------ > --- POWER ------------ (None) > --- PROPULSION ------- (None) > --- UTILITY ---------- Terrain Scanner Terrain Scan Processor Targeting Computer > --- WEAPON ----------- Hammer > --- INVENTORY -------- Hammer [Rating: 5] Favorites ----------- Power None Propulsion None Utility Targeting Computer Device Seismic Detector Processor Targeting Computer Weapon Assault Rifle Ballistic Gun Assault Rifle Impact Weapon Hammer Build | -11 -10 -9 ------- Run | Scr Mat Mat Slots Evolved 2 | . . 2 Power . | . . . Propulsion . | . . . Utility 2 | . . 2 Weapon . | . . . Parts Attached 7 | 1 2 4 Power . | . . . Engine . | . . . Core . | . . . Reactor . | . . . Propulsion . | . . . Treads . | . . . Leg . | . . . Wheel . | . . . Hover . | . . . Flight . | . . . Utility 4 | . 2 2 Device 2 | . 1 1 Storage . | . . . Processor 2 | . 1 1 Hackware . | . . . Protection . | . . . Artifact . | . . . Weapon 3 | 1 . 2 Energy Gun . | . . . Energy Cannon . | . . . Ballistic Gun 1 | 1 . . Ballistic Cannon . | . . . Launcher . | . . . Special Weapon . | . . . Impact Weapon 2 | . . 2 Slashing Weapon . | . . . Piercing Weapon . | . . . Special Melee Weapon . | . . . Unidentified Prototypes . | . . . Parts Lost 2 | . . 2 Power . | . . . Propulsion . | . . . Utility 1 | . . 1 Weapon 1 | . . 1 Highest Loss Streak 2 | . . 2 To Critical Strikes . | . . . Average Slot Usage (%) 26 | . 30 25 Device 4 | . 7 3 Processor 10 | . 8 11 Ballistic Gun 6 | . 14 2 Impact Weapon 5 | . . 8 Naked Turns . | . . . Heaviest Build 4 | 2 3 4 Greatest Support 3 | 3 3 3 Greatest Overweight (x) 1 | . . 1 Average Overweight (x) . | . . . Largest Inventory Capacity 5 | 5 5 5 Average Capacity 5 | 5 5 5 Most Carried 1 | . . 1 Average Carried . | . . . Final Capacity 5 | 5 5 5 Final Carried 1 | . . 1 Class Distribution -------------------- 100% | Mutant Dominant Class ---------------- Mutant | -10/Materials Mutant | -9/Materials Resources | -11 -10 -9 ----------- Run | Scr Mat Mat Matter Collected 289 | 119 110 60 Remotely . | . . . Salvage Created 290 | . . 290 Parts 13 | . . 13 Haulers Intercepted . | . . . Recyclers Shooed . | . . . Parts Field Recycled . | . . . Retrieved Matter . | . . . Parts Self-Destructed . | . . . Prevented . | . . . Kills | -11 -10 -9 ------- Run | Scr Mat Mat Combat Hostiles Destroyed 4 | . . 4 Melee 2 | . . 2 Guns 1 | . . 1 Classes Destroyed 5 | . . 5 Builder 1 | . . 1 Recycler 2 | . . 2 Watcher 1 | . . 1 Swarmer 3 | . . 3 Sentry 1 | . . 1 Best Kill Streak 3 | . . 3 Combat Bots Only 2 | . . 2 Max Kills in Single Turn 1 | . . 1 Gunslinging . | . . . Exploded . | . . . Melee 1 | . . 1 Uniques/NPCs Destroyed . | . . . Combat | -11 -10 -9 -------- Run | Scr Mat Mat Damage Taken 708 | . 187 521 Core 526 | . 123 403 Absorbed by Shields . | . . . Core Remaining (%) 75 | 100 50 . Volleys Fired 11 | . 4 7 Largest 1 | . 1 1 Hottest 20 | . 20 20 Shots Fired 11 | . 4 7 Gun 11 | . 4 7 Cannon . | . . . Launcher . | . . . Special . | . . . Kinetic 11 | . 4 7 Thermal . | . . . Explosive . | . . . Electromagnetic . | . . . Robot Hit Streak 3 | . 2 3 Robot Miss Streak 2 | . 1 2 Penetration Max . | . . . Secondary Targets . | . . . Shots Hit Robots 20 | . 2 18 Core Hits 5 | . 1 4 Critical Kills . | . . . Critical Parts Destroyed 2 | . . 2 Critical Strikes 2 | . . 2 Smash 2 | . . 2 Melee Attacks 22 | . . 22 Impact 22 | . . 22 Slashing . | . . . Piercing . | . . . Sneak Attacks 3 | . . 3 Combat Hostiles . | . . . Follow-up Attacks . | . . . Damage Inflicted 522 | . 42 480 Guns 87 | . 25 62 Cannons . | . . . Explosions . | . . . Melee 418 | . . 418 Ramming 17 | . 17 . Kinetic 87 | . 25 62 Thermal . | . . . Explosive . | . . . Electromagnetic . | . . . Impact 418 | . . 418 Slashing . | . . . Piercing . | . . . Highest Corruption 1 | . 1 . Average Corruption 1 | . 1 . Corruption Purged . | . . . Corruption Blocked . | . . . Overload Shots . | . . . Overflow Damage 87 | . . 87 Projectiles . | . . . Explosions . | . . . Melee 87 | . . 87 Knockbacks . | . . . Impact . | . . . Kinetic . | . . . Secondary . | . . . Self-Inflicted Damage 8 | . 8 . Shots . | . . . Rammed 2 | . 2 . Targets Rammed 2 | . 2 . Kicked . | . . . Crushed . | . . . Highest Temperature 2 | . 2 . Average Temperature 2 | . 2 . Received Heat Transfer 243 | . 117 126 Siege Activations . | . . . Robots Corrupted . | . . . Combat Hostiles . | . . . Parts Fried 2 | . . 2 Impact Corruptions 4 | . . 4 Robots Melted . | . . . Combat Hostiles . | . . . Parts Melted . | . . . Heat Transferred . | . . . Parts Sabotaged . | . . . Parts Stolen . | . . . Parts Stripped . | . . . Power Chain Reactions . | . . . Missiles Intercepted . | . . . Alert | -11 -10 -9 ------- Run | Scr Mat Mat Peak Influence 167 | . 65 167 Initial 27 | . . 27 Average 66 | . 32 86 Maximum Alert Level . | . . . Low Security (%) 100 | 100 100 100 Level 1 . | . . . Level 2 . | . . . Level 3 . | . . . Level 4 . | . . . Level 5 . | . . . High Security . | . . . Max Security . | . . . Squads Dispatched 3 | . 3 . Investigation 1 | . 1 . Extermination . | . . . Reinforcement 2 | . 2 . Assault . | . . . Garrison . | . . . Intercept . | . . . Searches Triggered . | . . . Construction Impeded . | . . . Haulers Reinforced . | . . . Active Scanning Responses . | . . . Cargo Convoy Interrupts . | . . . Stealth | -11 -10 -9 --------- Run | Scr Mat Mat Distress Signals 4 | . 2 2 Communications Jammed . | . . . Distress Signals . | . . . Times Spotted 22 | . 13 9 Peak Tracking Total 12 | . 12 4 Tactical Retreats . | . . . Traps | -11 -10 -9 ------- Run | Scr Mat Mat Traps Triggered 1 | . 1 . Indirectly . | . . . Trap Hack Attempts . | . . . Triggered . | . . . Disarmed . | . . . Reprogrammed . | . . . Reused . | . . . Traps Extracted . | . . . Installed . | . . . Triggered . | . . . Machines | -11 -10 -9 ---------- Run | Scr Mat Mat Machines Disabled . | . . . Max in Single Turn . | . . . Machines Sabotaged . | . . . Garrisons Compromised . | . . . Overloaded Fab Kills . | . . . Hacking | -11 -10 -9 --------- Run | Scr Mat Mat Machines Accessed 3 | . 2 1 Terminals 3 | . 2 1 Fabricators . | . . . Repair Stations . | . . . Recycling Units . | . . . Scanalyzers . | . . . Garrison Access . | . . . Total Hacks 6 | . 5 1 Successful 2 | . 1 1 Failed 4 | . 4 . Catastrophic 1 | . 1 . Database Lockouts . | . . . Manual 4 | . 4 . Terminals 6 | . 5 1 Fabricators . | . . . Repair Stations . | . . . Recycling Units . | . . . Scanalyzers . | . . . Garrison Access . | . . . Terminal Hacks 1 | . . 1 Robot Analysis 1 | . . 1 Fabricator Hacks . | . . . Repair Station Hacks . | . . . Recycling Unit Hacks . | . . . Scanalyzer . | . . . Garrison Access Hacks . | . . . Unauthorized Hacks 1 | . 1 . Terminals 1 | . 1 . Botnet 1 | . 1 . Fabricators . | . . . Repair Stations . | . . . Recycling Units . | . . . Scanalyzers . | . . . Garrison Access . | . . . Data Cores Recovered . | . . . Used . | . . . Hacking Detections 2 | . 2 . Full Trace Events 1 | . 1 . Feedback Events . | . . . Feedback Blocked . | . . . Robot Schematics Acquired . | . . . Robots Built . | . . . Authchips . | . . . Time . | . . . Total Robot Build Rating . | . . . Part Schematics Acquired . | . . . Parts Built . | . . . Authchips . | . . . Time . | . . . Total Part Build Rating . | . . . Parts Repaired . | . . . Time . | . . . Parts Recycled . | . . . Recycled Matter . | . . . Retrieved Matter . | . . . Retrieved Components . | . . . Parts Scanalyzed . | . . . Part Schematics Acquired . | . . . Parts Damaged . | . . . Bothacking | -11 -10 -9 ------------ Run | Scr Mat Mat Used RIF Installer . | . . . Robots Hacked . | . . . Non-combat . | . . . Combat . | . . . Robot Hacks Applied . | . . . Relay Couplers Released . | . . . Fabnet Peak Effective % . | . . . Robots Rewired . | . . . Allies Hacked . | . . . Hacks Repelled . | . . . Allies | -11 -10 -9 -------- Run | Scr Mat Mat Total Allies . | . . . Largest Group . | . . . Highest-Rated Group . | . . . Highest-Rated Ally . | . . . Total Orders . | . . . Ally Attacks . | . . . Total Damage . | . . . Kills . | . . . Allies Corrupted . | . . . Allies Melted . | . . . Intel | -11 -10 -9 ------- Run | Scr Mat Mat Robot Analysis Total 1 | . . 1 Derelict Logs Recovered . | . . . Drone Launches . | . . . Drone Recoveries . | . . . Exploration | -11 -10 -9 ------------- Run | Scr Mat Mat Turns Passed 347 | 13 112 222 Spaces Moved 406 | 23 169 214 Core 406 | 23 169 214 Treads . | . . . Legs . | . . . Wheels . | . . . Hover . | . . . Flight . | . . . Fastest Speed 50 | 50 50 50 Average Speed 50 | 50 50 51 Slowest Speed 100 | 50 50 100 Overloaded Moves . | . . . Propulsion Burnouts . | . . . Robots Hopped . | . . . Cave-ins Triggered . | . . . Exploration Rate (%) 24 | 3 43 27 Regions Visited 2 Branch Regions . Pre-discovered Areas . | . . . Known Exits Taken . | . . . Unknown Exits Taken 2 | 1 1 . Scrap Searched . | . . . Spaces Dug 1 | . . 1 Terrain Destroyed 1 | . . 1 Melee 1 | . . 1 Projectile . | . . . AOE . | . . . Terrain Rammed . | . . . Walls Destroyed . | . . . Machines Disabled . | . . . Actions | -11 -10 -9 --------- Run | Scr Mat Mat Total 492 | 23 190 279 Wait 46 | . 14 32 Move 404 | 22 168 214 Hop . | . . . Pick Up . | . . . Fast Attach 7 | 1 2 4 Attach . | . . . Detach 1 | . . 1 Swap . | . . . Drop . | . . . Fire 11 | . 4 7 Melee 21 | . . 21 Ram 2 | . 2 . Kick . | . . . Crush . | . . . Escape Stasis . | . . . Rewire . | . . . Trap . | . . . Miscellaneous . | . . . Route ------- -11/Scrapyard -10/Materials -9/Materials History --------- Turn | Location | Event 6 | -11/Scrapyard | Discovered new exit (range 15) 14 | -11/Scrapyard | Entered Materials 120 | -10/Materials | Discovered new exit (range 12) 126 | -10/Materials | Entered another Materials area 126 | -9/Materials | Evolved 2 slots: Utility x2 295 | -9/Materials | Core integrity fell below 50% 312 | -9/Materials | Build established: Mutant 321 | -9/Materials | Core integrity fell below 20% 348 | -9/Materials | Destroyed by Y-45 Defender with Heavy Assault Rifle Last Messages --------------- 00294_ W-16 Scout system terminally corrupted. 00324_ Critical hit (Burn: +37). 00327_ Sneak attack on U-05 Engineer. 00327_ U-05 Engineer destroyed. 00330_ Acquired Terrain Scanner. 00332_ Acquired 10 matter. 00332_ R-06 Scavenger collects Wheel. 00333_ Acquired Terrain Scan Processor. 00334_ Acquired 2 matter. 00335_ Sneak attack on R-06 Scavenger. 00335_ R-06 Scavenger suffers critical hit (Smash). 00335_ Destroyed Tractor Beam. 00335_ R-06 Scavenger system corrupted by crushing effect. 00335_ Com. Wheel fried. 00335_ R-06 Scavenger destroyed. 00336_ R-06 Scavenger collects Lgt. Treads. 00336_ T-07 Excavator is excavating. 00337_ U-05 Engineer lays Concrete. 00338_ Acquired 8 matter. 00341_ T-07 Excavator is excavating. Map ----- +----------------------------------------------------+ | ?????????????????????????????????????????????????? | | ???????????????????????????????????????? ??????? | | ???????????????????????????????????????# ??????? | | ??????????????????????????????????????## ??????? | | ??????????????????????????????????????# ??????? | | ?????????????????????????????????????? ??????? | | ??????????????????????????????????????? ??????? | | ??????????????????????????????????????? ??????? | | ???????????????????????????????????????? ??????? | | ??????????????????????????????????????###+#######? | | ???????????????????????? ???????????# #? | | ???????????????????????# ???????????# !## | | ???????????????????????# #??????? ??# [[/ #? | | ??????????????????????## #??##??????# [!/ #? | | ?????????????????????? #?? ?????# [!/ #? | | ??????????????????????? ##?? ?????#% #? | | ??????????????????????? #??? "R" # ## | | ???????????????????????# #???? " " # # | | ?????????????????????"?# #???? #+####/##### | | ????????????????????"??# ##???? """ # #??# #???? | | ???????????????????????# ?+ ? """ # #??# #???? | | ???????????????????????# w #??????"""?# #?## #???? | | ???????????????????????# #?#???? ?# #?## ##??? | | ???????????????????????# ###+####+### ### !# | | ??????#########?###????# % %= | | ??????# ########## @ ######= # | | ??????# + #????######## | | ??????# "T" # #########+###+# ####????#????#?? | | ??????######+## #????# # #??????#???????? | | ????# ????# #????# """ # #??#???????????? | | ????# ""??# #????# """"" # #??????#???#???? | | ????# """ # ###### """"" # #????#??#?????#? | | ????#= """ + + """"" # #??????????????? | | ????# ####+###### """ # #????????##????? | | ????# ???? ???# # #??#??#########? | | ????###?????# #??# # #?????# ## | | ????????????# #??# # ####### ! | | ????????????#""" ############# % | | ????????????#""" # "" # | | ????????????#""" # ""S # | | ????????????# # "" + ###+### | | ????????????####### """ # ## % #! ! | | ????????????????????""" # ## ######+### | | ????????????????????""" # ##! #????????? | | ??????????????????? ! # ## //#????????? | | ??????????????????############# ## #????????? | | ???????????????????????######## ## #????????? | | ???????????????????????# + #######????????? | | ???????????????????????# # #??????????????? | | ???????????????????????# # #??#######?????? | +----------------------------------------------------+ Best States ------------- Heat Dissipation 28 Energy Generation 5 Energy Capacity 100 Matter Stores 300 Matter Capacity 300 Sight Range 16 Terrain Scan Range 14 Terrain Scan Density 85 Evasion (%) 50 Targeting Accuracy 5 Item Schematics ----------------- None Robot Schematics ------------------ None Fabricated ------------ Nothing Alien Tech Used ----------------- None Achievements -------------- None Challenges ------------ None Game ------ Seed IonicWeldingWheel Manual? 0 Play Time 00:07:39 Cumulative 103.5 hours Start 2022.05.14 @ 14:30:02 End 2022.05.14 @ 14:36:16 Sessions 1 Manual Loads 0 Difficulty Rogue Special Mode None Game No. 139 Rogue 139 Adventurer 0 Explorer 0 Win Type - Total 1 Types 1/0/0/0/0/0/0/0/0 Lore% 58 Gallery% 55 Achievement% 48 Wizard Run 0 Options --------- ASCII 0 Keyboard 0 Movement Numpad Keybinds 0 Fullscreen 1 Font 18/X11Bold Map View 76x50 Tactical HUD 1 Map Filters NONE Filters NONE Steam X RUN: 875941f7-fab1-463f-ab11-bb8129475ce2